bitfinex/quotes_SOLUSD_20241111
["timestamp","ask_amount","ask_price","bid_price","bid_amount"]
[1731363388413,5.84450401,217.8,217.73,6.0104]
[1731363389020,0.1,217.78,217.73,6.0104]
[1731363389223,5.94450401,217.8,217.73,6.0104]
[1731363389618,0.1,217.78,217.73,6.0104]
[1731363389818,0.1,217.76,217.73,6.0104]
[1731363390017,1.24849047,217.76,217.73,6.0104]
[1731363390219,1.14849047,217.76,217.73,6.0104]
[1731363390842,1.24849047,217.76,217.73,6.0104]
[1731363391154,1.14853751,217.75,217.73,6.0104]
[1731363391348,0.1,217.74,217.65,22.5682]
[1731363391632,1.14875663,217.73,217.65,22.5682]
[1731363391836,1.16519574,217.78,217.65,22.5682]
[1731363391837,1.14852845,217.76,217.65,22.5682]
[1731363392837,1.14835608,217.75,217.65,22.5682]
[1731363393139,1.14835807,217.79,217.65,22.5682]
[1731363394618,1.14835807,217.79,217.66,23.776884]
[1731363395018,1.14835807,217.79,217.68,23.776884]
[1731363395241,1.14835807,217.79,217.69,22.5682]
[1731363395438,1.14835807,217.79,217.7,23.776884]
[1731363396244,4.69614899,217.8,217.7,23.776884]
[1731363396620,1.14801866,217.82,217.72,23.776884]
[1731363397223,4.69627764,217.83,217.74,23.776884]
[1731363397443,1.14777692,217.82,217.73,22.5682]
[1731363397623,2.35402553,217.84,217.73,22.5682]
[1731363397822,4.79618171,217.82,217.67,22.5682]
[1731363398035,2.41366305,217.81,217.67,22.5682]
[1731363398241,3.47885879,217.81,217.67,22.5682]
[1731363398540,3.57885879,217.81,217.67,22.5682]
[1731363399122,3.47885879,217.81,217.67,22.5682]
[1731363400050,8.17005879,217.81,217.67,22.5682]
[1731363400346,0.1,217.79,217.67,22.5682]
[1731363400531,0.1,217.79,217.63,19.2443181]
[1731363400532,0.1,217.75,217.63,19.2443181]
[1731363400723,2.33194087,217.74,217.63,19.2443181]
[1731363401056,1.14875519,217.73,217.63,19.2443181]
[1731363402563,6.32962988,217.78,217.63,19.2443181]
[1731363402724,2.33194087,217.77,217.63,19.2443181]
[1731363402925,1.1485411,217.76,217.63,19.2443181]
[1731363404527,5.7407411,217.76,217.63,19.2443181]
[1731363404729,7.523148,217.76,217.63,19.2443181]
[1731363404928,3.48806933,217.75,217.63,19.2443181]
[1731363405233,1.14865738,217.74,217.63,19.2443181]
[1731363406131,1.14859153,217.73,217.63,19.2443181]
[1731363406347,1.14859662,217.77,217.63,19.2443181]
[1731363406730,1.24859662,217.77,217.63,19.2443181]
[1731363407026,7.02702569,217.77,217.63,19.2443181]
[1731363407332,0.1,217.73,217.63,19.2443181]
[1731363407542,6.41919631,217.73,217.63,19.2443181]
[1731363408135,4.70779139,217.72,217.63,19.2443181]
[1731363408360,1.1487452,217.71,217.63,19.2443181]
[1731363416645,0.1,217.69,217.63,19.2443181]
[1731363416950,5.62714553,217.68,217.63,19.2443181]
[1731363417270,0.1,217.66,217.63,19.2443181]
[1731363417431,6.77635573,217.65,217.63,19.2443181]
[1731363417951,23.876884,217.64,217.63,19.2443181]
[1731363418135,0.1,217.6,217.59,10.0]
[1731363418338,0.1,217.6,217.29,0.1]
[1731363418339,0.1,217.52,217.3,0.1]
[1731363418532,6.54993944,217.51,217.33,0.1]
[1731363418734,6.54993944,217.51,217.33,0.2]
[1731363418735,1.15001529,217.5,217.33,0.2]
[1731363418940,6.65299983,217.49,217.33,0.2]
[1731363419135,1.14994556,217.48,217.33,0.1]
[1731363419341,1.14994556,217.48,217.35,0.1]
[1731363419748,1.14994556,217.48,217.38,0.1]
[1731363419946,6.65299983,217.55,217.38,0.1]
[1731363420149,1.14969101,217.54,217.38,0.1]
[1731363420348,6.65299983,217.53,217.34,0.1]
[1731363420545,1.14983171,217.52,217.38,0.1]
[1731363420759,1.14983171,217.52,217.37,0.1]
[1731363420760,7.80283154,217.52,217.37,0.1]
[1731363420944,14.45583154,217.52,217.38,0.1]
[1731363421456,6.65299983,217.51,217.37,0.2]
[1731363421659,1.14961666,217.5,217.37,0.2]
[1731363421848,7.80261649,217.5,217.39,0.1]
[1731363422157,8.89460048,217.49,217.41,23.776884]
[1731363422346,7.80261649,217.5,217.41,23.776884]
[1731363422753,6.65299983,217.5,217.42,16.239]
[1731363422954,6.65299983,217.5,217.43,23.776884]
[1731363423757,6.653,217.52,217.43,23.876884]
[1731363424159,13.28888317,217.52,217.43,23.776884]
[1731363424464,6.63588317,217.51,217.43,23.776884]
[1731363424664,7.78534236,217.51,217.42,16.239]
[1731363424849,7.78534236,217.51,217.41,23.776884]
[1731363425544,6.653,217.52,217.42,0.1]
[1731363425761,6.63588317,217.56,217.48,0.1]
[1731363426065,6.653,217.55,217.47,23.776884]
[1731363426443,1.1492589,217.54,217.4,6.2908]
[1731363426647,1.14947931,217.54,217.42,0.1]
[1731363426951,7.55381803,217.54,217.42,0.1]
[1731363427152,6.40433872,217.54,217.44,0.1]
[1731363427355,7.55364718,217.54,217.42,0.1]
[1731363427551,6.40433872,217.53,217.41,23.776884]
[1731363427744,1.14945952,217.52,217.4,6.1908]
[1731363428062,6.40433872,217.51,217.4,6.1908]
[1731363428265,1.14988331,217.5,217.37,16.5681]
[1731363428567,6.83767205,217.49,217.37,16.5681]
[1731363428869,1.14989658,217.48,217.37,16.5681]
[1731363429159,6.83767205,217.47,217.37,16.5681]
[1731363429361,1.14991568,217.46,217.37,16.5681]
[1731363429664,6.83767205,217.45,217.37,16.5681]
[1731363429855,1.14996189,217.44,217.37,16.5681]
[1731363430054,7.15559428,217.43,217.38,0.1]
[1731363430253,1.14970338,217.48,217.37,16.5681]
[1731363430460,8.2939821,217.48,217.37,16.5681]
[1731363430764,7.14427872,217.47,217.37,16.5681]
[1731363430964,1.14990344,217.46,217.37,16.5681]
[1731363431265,7.34043427,217.45,217.37,16.5681]
[1731363431463,1.14991712,217.44,217.37,16.5681]
[1731363431656,7.34043427,217.43,217.38,23.776884]
[1731363432165,1.14990197,217.42,217.37,16.5681]
[1731363432365,7.34043427,217.41,217.37,16.5681]
[1731363432668,1.15004611,217.4,217.35,6.5747]
[1731363432876,8.49048038,217.4,217.32,16.5681]
[1731363433853,8.49048038,217.4,217.3,6.5747]
[1731363434170,7.34043427,217.39,217.26,42.8986565]
[1731363434358,1.15035695,217.38,217.26,42.8986565]
[1731363434667,7.34043427,217.37,217.26,42.7986565]
[1731363434969,1.15040202,217.36,217.26,42.7986565]
[1731363435147,7.34043427,217.35,217.26,42.7986565]
[1731363435463,1.15065918,217.34,217.26,26.2305565]
[1731363435665,7.34043427,217.33,217.26,26.2305565]
[1731363435845,1.15077436,217.32,217.26,26.2305565]
[1731363436448,8.49120863,217.32,217.26,26.2305565]
[1731363436944,1.15077436,217.32,217.26,26.2305565]
[1731363437266,1.15075203,217.39,217.29,0.1]
[1731363437446,1.15016448,217.48,217.28,6.5747]
[1731363437646,1.15016448,217.48,217.29,23.776884]
[1731363437847,1.15016448,217.48,217.28,6.5747]
[1731363438041,1.53191092,217.48,217.28,6.5747]
[1731363438245,1.63191092,217.48,217.28,6.5747]
[1731363438468,0.1,217.46,217.28,6.5747]
[1731363438683,6.67570987,217.46,217.28,6.5747]
[1731363439052,4.69678971,217.45,217.28,6.5747]
[1731363439246,1.15034878,217.44,217.28,6.5747]
[1731363439958,6.57566545,217.44,217.28,6.5747]
[1731363440347,1.15034878,217.44,217.28,6.5747]
[1731363442372,11.27466545,217.44,217.26,26.2305565]
[1731363442554,0.1,217.41,217.26,26.2305565]
[1731363442757,1.15070459,217.4,217.26,26.2305565]
[1731363443366,6.57602126,217.4,217.26,26.2305565]
[1731363443667,5.42531667,217.39,217.26,26.2305565]
[1731363443876,1.15059934,217.38,217.26,26.2305565]
[1731363444678,5.42531667,217.37,217.26,26.2305565]
[1731363444877,1.15063802,217.36,217.26,26.2305565]
[1731363445073,6.79262135,217.36,217.26,26.2305565]
[1731363445251,5.64198333,217.35,217.26,26.2305565]
[1731363445449,1.15059745,217.34,217.26,26.2305565]
[1731363445654,5.85865,217.33,217.26,26.2305565]
[1731363445955,1.1508961,217.32,217.26,26.2305565]
[1731363446160,6.14753889,217.31,217.26,26.2305565]
[1731363446474,1.15089098,217.3,217.26,26.2305565]
[1731363446677,6.14753889,217.29,217.26,26.2305565]
[1731363446881,1.15089043,217.28,217.26,26.2305565]
[1731363447057,6.14753889,217.27,217.26,26.2305565]
[1731363448454,7.29850554,217.27,217.26,26.2305565]
[1731363448961,6.14753889,217.27,217.26,26.2305565]
[1731363449165,2.32643421,217.29,217.26,26.2305565]
[1731363449472,4.68392787,217.27,217.26,26.2305565]
[1731363449966,11.13038211,217.27,217.26,26.2305565]
[1731363451457,4.68392787,217.27,217.26,26.2305565]
[1731363451971,12.16046539,217.27,217.26,26.2305565]
[1731363453352,14.51448573,217.27,217.26,26.2305565]
[1731363454682,34.51448573,217.27,217.26,26.2305565]
[1731363454861,58.29136973,217.27,217.26,20.51078939]
[1731363455056,61.14776776,217.27,217.26,3.75843105]
[1731363455261,0.1,217.18,217.17,10.0]
[1731363455565,50.47435945,217.18,217.17,10.0]
[1731363455969,50.57435945,217.18,217.17,10.0]
[1731363456157,53.43230686,217.18,217.17,10.0]
[1731363456576,47.78680023,217.18,217.17,10.0]
[1731363456876,4.00991623,217.18,217.17,10.0]
[1731363457253,11.0688024,217.18,217.17,10.0]
[1731363457461,16.91237014,217.18,217.17,10.0]
[1731363457785,12.30797014,217.18,217.17,10.0]
[1731363458255,56.08485414,217.18,217.17,10.0]
[1731363458455,35.88485414,217.18,217.17,10.0]
[1731363458671,35.98485414,217.18,217.17,10.0]
[1731363458863,266.05979441,217.18,217.17,10.0]
[1731363459068,264.80782559,217.18,217.17,1.30857477]
[1731363459357,265.00782559,217.18,217.17,1.30857477]
[1731363459656,0.1,217.11,217.02,10.0]
[1731363459877,0.1,217.09,217.02,10.0]
[1731363460176,20.0,217.07,217.02,10.0]
[1731363460381,4.01047561,217.06,217.02,10.0]
[1731363460574,20.0,217.05,217.02,10.0]
[1731363460886,20.1,217.03,217.02,10.0]
[1731363461176,30.27905949,217.03,217.02,10.0]
[1731363461381,30.27905949,217.03,217.02,0.62971126]
[1731363461588,54.05594349,217.03,217.02,0.62971126]
[1731363461873,0.1,216.96,216.8,6.2122]
[1731363462078,5.48864706,216.95,216.8,6.2122]
[1731363462252,5.48864706,216.95,216.81,0.1]
[1731363462458,5.48864706,216.95,216.8,6.2122]
[1731363462459,5.48864706,216.95,216.82,0.1]
[1731363462662,5.48864706,216.95,216.8,6.2122]
[1731363462878,23.776884,216.93,216.8,6.2122]
[1731363463063,5.48873097,216.92,216.8,6.2122]
[1731363463260,23.876884,216.88,216.65,22.81]
[1731363463576,23.776884,216.86,216.65,22.90670574]
[1731363463783,5.48909419,216.85,216.7,0.1]
[1731363464284,5.48909419,216.85,216.69,0.1]
[1731363464583,20.0,216.84,216.65,15.31]
[1731363464873,4.01167463,216.83,216.65,15.31]
[1731363466560,20.0,216.79,216.65,15.31]
[1731363466781,1.15401642,216.78,216.65,15.31]
[1731363467092,5.48950817,216.78,216.67,0.1]
[1731363467377,4.69660286,216.84,216.72,0.1]
[1731363467575,1.15321921,216.83,216.72,0.2]
[1731363467756,10.88019219,216.91,216.74,0.1]
[1731363467960,1.15315641,216.91,216.73,6.5154]
[1731363468172,1.15315641,216.91,216.73,6.6154]
[1731363468383,0.1,216.93,216.73,6.5154]
[1731363468586,1.15322248,216.93,216.73,6.5154]
[1731363468875,1.15322248,216.93,216.79,16.1502]
[1731363469464,0.1,216.9,216.79,16.1502]
[1731363469670,0.2,216.88,216.73,6.5154]
[1731363469874,1.15361879,216.87,216.73,6.5154]
[1731363470889,1.15361879,216.87,216.74,0.1]
[1731363471181,1.15361879,216.87,216.73,6.5154]
[1731363471566,4.6854074,216.86,216.76,0.1]
[1731363471768,4.6854074,216.86,216.79,0.1]
[1731363472088,4.68253138,216.94,216.83,16.4273]
[1731363472296,1.152657,216.93,216.83,16.4273]
[1731363472793,4.68253138,216.94,216.83,16.4273]
[1731363473092,4.68253138,216.94,216.84,6.6519]
[1731363473796,1.15267969,216.93,216.84,6.6519]
[1731363474170,5.83521069,216.93,216.84,6.6519]
[1731363474990,4.68253138,216.94,216.84,6.6519]
[1731363475169,10.51774238,216.94,216.84,6.7519]
[1731363475490,4.68253138,216.94,216.84,6.6519]
[1731363475692,10.517743,216.95,216.84,6.6519]
[1731363475991,1.15247361,217.06,216.84,6.6519]
[1731363475992,4.68080406,216.98,216.85,0.1]
[1731363476288,4.68080406,216.98,216.87,0.2]
[1731363476665,4.68080406,216.98,216.85,0.1]
[1731363476867,1.15230075,216.97,216.85,0.1]
[1731363477087,4.68080406,216.98,216.85,0.1]
[1731363477488,4.68080406,216.98,216.87,0.1]
[1731363477671,23.776884,217.03,216.89,0.1]
[1731363477872,4.67958496,217.01,216.89,0.1]
[1731363478075,5.83177978,217.01,216.89,0.1]
[1731363478483,4.67958496,217.01,216.89,0.1]
[1731363478885,1.15218569,217.0,216.84,6.7519]
[1731363479270,1.15218569,217.0,216.84,6.6519]
[1731363479466,43.776884,216.99,216.84,6.6519]
[1731363479692,23.776884,216.97,216.84,6.6519]
[1731363479894,23.776884,216.95,216.84,6.6519]
[1731363480070,23.776884,216.93,216.84,6.6519]
[1731363480275,23.776884,216.91,216.84,6.6519]
[1731363480472,23.776884,216.89,216.84,6.6519]
[1731363480684,23.776884,216.87,216.83,16.4273]
[1731363480884,23.776884,216.85,216.83,16.4273]
[1731363481096,23.776884,216.84,216.83,16.4273]
[1731363481400,23.776884,216.95,216.83,16.4273]
[1731363481695,23.776884,216.93,216.83,16.4273]
[1731363482001,23.776884,216.91,216.83,16.4273]
[1731363482201,23.776884,216.89,216.83,16.4273]
[1731363482408,23.776884,216.87,216.83,16.4273]
[1731363482573,22.33776393,217.0,216.83,16.4273]
[1731363482574,1.15304266,216.96,216.83,16.4273]
[1731363482897,1.15273003,216.99,216.83,16.4273]
[1731363483070,1.15273003,216.99,216.83,16.5273]
[1731363483577,1.15273003,216.99,216.88,6.2231]
[1731363483776,10.517743,217.05,216.88,6.2231]
[1731363483777,1.15240029,217.0,216.88,6.2231]
[1731363483987,1.15223603,217.04,216.88,6.2231]
[1731363484697,1.15223603,217.04,216.91,0.1]
[1731363484889,1.15223603,217.04,216.89,15.1184]
[1731363485090,1.15223603,217.04,216.89,15.2184]
[1731363485271,1.15223603,217.04,216.9,0.1]
[1731363485472,1.15223603,217.04,216.89,15.0184]
[1731363486005,21.15223603,217.04,216.89,15.0184]
[1731363487397,21.15223603,217.04,216.89,15.1184]
[1731363487705,21.15223603,217.04,216.89,15.0184]
[1731363487874,3.27105007,217.03,216.89,15.0184]
[1731363488073,21.15261595,217.02,216.89,15.0184]
[1731363488396,20.0,217.0,216.89,15.0184]
[1731363488597,20.0,216.97,216.89,15.0184]
[1731363488804,1.1524961,216.96,216.89,15.0184]
[1731363488998,1.15231787,216.99,216.89,15.0184]
[1731363489303,3.27892778,216.98,216.89,15.0184]
[1731363489481,21.15238808,216.97,216.89,15.0184]
[1731363489678,3.28105853,216.96,216.89,15.0184]
[1731363489883,21.15238808,216.97,216.89,15.0184]
[1731363490091,23.776884,216.96,216.89,15.0184]
[1731363490391,23.776884,216.94,216.89,15.0184]
[1731363490602,1.15241116,217.03,216.89,15.0184]
[1731363490781,23.776884,216.98,216.89,15.0184]
[1731363490986,23.776884,216.96,216.89,15.0184]
[1731363491495,23.776884,216.94,216.89,15.0184]
[1731363491680,23.776884,216.92,216.89,15.0184]
[1731363491881,23.776884,216.94,216.89,15.0184]
[1731363492094,3.29324191,216.93,216.89,15.0184]
[1731363492303,3.29324191,216.92,216.89,15.0184]
[1731363492496,23.776884,216.94,216.89,15.0184]
[1731363492701,3.29884855,216.93,216.89,15.0184]
[1731363492998,10.517743,217.05,216.89,15.0184]
[1731363492999,3.29866127,216.92,216.89,15.0184]
[1731363493184,27.08089567,216.91,216.89,15.0184]
[1731363493389,3.30401167,216.91,216.89,15.0184]
[1731363493589,3.30401167,216.9,216.89,15.0184]
[1731363494683,23.776884,216.94,216.89,15.0184]
[1731363494888,4.69014005,216.96,216.89,15.0184]
[1731363495078,23.776884,216.95,216.89,15.0184]
[1731363495775,1.15246952,216.94,216.89,15.0184]
[1731363496082,23.776884,216.93,216.89,15.0184]
[1731363496397,23.776884,216.95,216.89,15.0184]
[1731363497098,1.15249563,216.94,216.89,15.0184]
[1731363497281,23.776884,216.93,216.89,15.0184]
[1731363497983,23.776884,216.95,216.89,15.0184]
[1731363498702,1.25260213,217.04,216.89,15.0184]
[1731363498703,21.25260213,217.04,216.89,15.0184]
[1731363498902,1.15260213,217.04,216.89,15.0184]
[1731363500187,10.517743,217.05,216.9,0.2]
[1731363500383,1.15195955,217.04,216.9,0.2]
[1731363500817,1.15195955,217.04,216.89,15.0184]
[1731363501604,1.15195955,217.04,216.9,0.1]
[1731363502200,1.15195955,217.04,216.89,15.0184]
[1731363502388,10.517743,217.05,216.91,0.1]
[1731363503307,1.15192145,217.04,216.91,0.1]
[1731363503514,1.15192145,217.04,216.89,15.2184]
[1731363503821,10.517743,217.05,216.94,0.1]
[1731363504022,1.15173399,217.04,216.91,0.1]
[1731363504313,10.517743,217.05,216.91,0.1]
[1731363504485,1.15189087,217.04,216.91,0.1]
[1731363504686,10.517743,217.05,216.91,0.1]
[1731363504915,1.15178558,217.04,216.89,12.7184]
[1731363505616,23.876884,217.03,216.89,12.6184]
[1731363505816,23.776884,217.01,216.89,12.6184]
[1731363506312,23.776884,217.02,216.89,12.6184]
[1731363506609,24.92902363,217.02,216.89,12.6184]
[1731363506819,23.776884,217.04,216.89,12.6184]
[1731363507107,24.92888654,217.04,216.89,12.6184]
[1731363507309,0.1,217.02,216.89,12.6184]
[1731363507511,23.776884,217.01,216.89,12.6184]
[1731363507891,10.517743,217.05,216.89,12.6184]
[1731363508094,23.776884,217.03,216.89,12.6184]
[1731363508891,9.517743,217.05,216.9,6.4536]
[1731363509201,9.617743,217.05,216.92,6.4536]
[1731363509510,9.517743,217.05,216.92,6.4536]
[1731363509906,9.517743,217.05,216.93,15.8205]
[1731363510807,9.517743,217.05,216.96,6.4536]
[1731363511713,2.3898803,217.09,216.97,15.8205]
[1731363511909,0.1,217.17,216.88,0.1]
[1731363511910,0.1,217.2,217.01,15.8205]
[1731363512299,1.1516778,217.23,217.09,0.1]
[1731363512590,1.15099692,217.28,217.15,0.1]
[1731363512797,1.15072618,217.33,217.16,22.2741]
[1731363512998,1.840148,217.27,217.16,22.2741]
[1731363513729,0.1,217.32,217.16,22.2741]
[1731363514300,0.1,217.34,217.16,22.2741]
[1731363514624,1.840178,217.27,217.17,0.1]
[1731363514823,1.15039048,217.42,217.23,0.1]
[1731363515005,1.25012942,217.43,217.23,0.1]
[1731363515207,0.1,217.45,217.27,0.1]
[1731363515408,1.24991946,217.45,217.28,6.4536]
[1731363515607,0.1,217.45,217.28,6.4536]
[1731363515822,0.1,217.45,217.29,15.8205]
[1731363515998,0.1,217.45,217.3,0.1]
[1731363516203,0.1,217.45,217.29,15.8205]
[1731363516524,0.1,217.45,217.3,0.1]
[1731363516918,0.1,217.51,217.32,0.1]
[1731363517124,0.1,217.51,217.36,0.1]
[1731363517319,0.1,217.54,217.36,0.1]
[1731363517528,0.1,217.58,217.4,0.1]
[1731363517823,0.1,217.56,217.41,15.8205]
[1731363518002,0.1,217.54,217.41,15.8205]
[1731363518202,0.1,217.58,217.41,15.8205]
[1731363518403,0.1,217.56,217.41,15.8205]
[1731363518826,0.1,217.54,217.41,15.8205]
[1731363519128,4.5955,217.55,217.41,15.8205]
[1731363519822,4.5955,217.55,217.42,0.91935518]
[1731363520205,0.1,217.62,217.43,0.1]
[1731363520603,0.1,217.57,217.41,15.8205]
[1731363520803,6.19002304,217.61,217.43,0.1]
[1731363521021,6.19002304,217.61,217.45,0.1]
[1731363521022,11.31552104,217.61,217.45,0.1]
[1731363521230,3.81552104,217.61,217.45,0.2]
[1731363521405,3.81552104,217.61,217.42,0.1]
[1731363522107,3.81552104,217.61,217.43,0.1]
[1731363522424,24.92590754,217.6,217.43,6.4536]
[1731363522920,20.0,217.57,217.43,6.4536]
[1731363523100,20.0,217.55,217.43,6.4536]
[1731363523420,23.776884,217.52,217.43,6.4536]
[1731363524425,23.776884,217.5,217.41,15.8205]
[1731363527522,23.776884,217.5,217.42,6.1159]
[1731363528025,20.776884,217.5,217.42,6.1159]
[1731363529319,21.24929029,217.49,217.3,16.0003]
[1731363529519,21.14929029,217.49,217.3,16.0003]
[1731363529823,23.776884,217.48,217.3,16.0003]
[1731363530026,23.776884,217.46,217.3,16.0003]
[1731363530532,0.1,217.4,217.17,16.0003]
[1731363530830,23.776884,217.39,217.18,0.1]
[1731363531012,23.776884,217.37,217.2,0.1]
[1731363531209,23.776884,217.37,217.22,0.2]
[1731363531605,230.07494027,217.51,217.29,0.1]
[1731363531811,230.07494027,217.51,217.33,0.1]
[1731363532111,230.07494027,217.51,217.36,0.2]
[1731363532317,230.07494027,217.51,217.38,6.2019]
[1731363532514,5.65018804,217.59,217.4,0.1]
[1731363532712,5.65018804,217.59,217.42,0.1]
[1731363532713,1.14920591,217.58,217.42,0.1]
[1731363532921,4.67064392,217.58,217.4,0.2]
[1731363533123,4.67064392,217.58,217.42,0.1]
[1731363533325,1.14920591,217.59,217.42,0.1]
[1731363534126,23.776884,217.58,217.42,0.1]
[1731363534735,20.0,217.55,217.42,0.1]
[1731363534941,23.776884,217.54,217.4,0.1]
[1731363535312,23.776884,217.54,217.42,0.2]
[1731363535629,23.776884,217.54,217.4,0.2]
[1731363536031,23.776884,217.54,217.4,0.1]
[1731363536419,23.776884,217.54,217.42,0.1]
[1731363536619,23.776884,217.54,217.4,0.2]
[1731363537335,23.776884,217.54,217.42,0.1]
[1731363537628,23.776884,217.54,217.42,0.2]
[1731363538018,23.776884,217.54,217.42,0.1]
[1731363538247,23.776884,217.54,217.42,0.2]
[1731363538710,3.81552104,217.61,217.44,0.1]
[1731363538917,3.81552104,217.61,217.45,0.1]
[1731363539113,1.14885015,217.6,217.39,0.1]
[1731363539333,1.14885015,217.6,217.41,0.1]
[1731363539535,1.14885015,217.6,217.38,6.4019]
[1731363539710,1.14885015,217.6,217.41,0.1]
[1731363540116,3.81552104,217.61,217.43,0.1]
[1731363540332,20.0,217.57,217.43,0.2]
[1731363540639,3.81552104,217.61,217.47,15.6005]
[1731363541021,3.81552104,217.61,217.47,15.7005]
[1731363541215,3.81552104,217.61,217.47,15.6005]
[1731363541720,3.81552104,217.61,217.49,6.1305]
[1731363541921,3.03570954,217.69,217.49,6.1305]
[1731363541922,0.68952005,217.69,217.52,0.2]
[1731363542115,0.68952005,217.69,217.55,15.6005]
[1731363542528,0.68952005,217.69,217.55,15.7005]
[1731363542736,0.68952005,217.69,217.55,15.8005]
[1731363542911,0.68952005,217.69,217.59,6.1305]
[1731363543113,4.78526303,217.79,217.62,15.6005]
[1731363543420,4.78410811,217.83,217.63,0.1]
[1731363543614,1.14785537,217.82,217.63,0.1]
[1731363543818,5.93197484,217.83,217.62,15.7005]
[1731363544034,1.14786673,217.83,217.62,15.7005]
[1731363544231,4.59,217.87,217.63,0.1]
[1731363544232,4.7840142,217.84,217.63,0.1]
[1731363544540,0.1,217.79,217.62,15.6005]
[1731363544741,4.5911,217.81,217.62,15.6005]
[1731363545035,4.784014,217.78,217.62,15.6005]
[1731363545342,23.776884,217.77,217.62,15.6005]
[1731363545840,1.14794056,217.86,217.63,1.11835245]
[1731363546022,1.14794056,217.86,217.65,0.1]
[1731363546232,1.14772476,217.85,217.62,15.6005]
[1731363546430,1.14778627,217.87,217.62,15.6005]
[1731363546628,0.1,217.86,217.62,15.6005]
[1731363546828,4.5905,217.84,217.62,15.6005]
[1731363547028,1.14804533,217.83,217.62,15.6005]
[1731363547426,21.14804533,217.83,217.62,15.6005]
[1731363547633,23.776884,217.8,217.64,0.2]
[1731363547833,23.776884,217.8,217.62,15.6005]
[1731363548041,1.14776832,217.83,217.62,15.6005]
[1731363548042,1.14776832,217.83,217.63,0.918315]
[1731363548643,1.14776832,217.83,217.62,15.6005]
[1731363548943,0.1,217.81,217.62,15.6005]
[1731363549245,20.0,217.75,217.62,15.6005]
[1731363549448,23.776884,217.72,217.62,15.6005]
[1731363549742,23.776884,217.68,217.62,15.6005]
[1731363549949,5.08613249,217.8,217.62,15.6005]
[1731363549950,23.776884,217.8,217.62,15.6005]
[1731363550126,20.0,217.75,217.62,15.6005]
[1731363550318,20.0,217.71,217.62,15.6005]
[1731363550518,23.776884,217.7,217.62,15.6005]
[1731363550727,23.776884,217.68,217.62,15.6005]
[1731363550926,1.14831276,217.8,217.62,15.6005]
[1731363551125,21.14807897,217.83,217.62,15.6005]
[1731363551333,20.0,217.81,217.62,15.6005]
[1731363551541,20.0,217.81,217.57,0.1]
[1731363551542,6.233918,217.86,217.64,15.9047]
[1731363551740,6.233918,217.86,217.68,0.1]
[1731363551926,6.233918,217.86,217.69,0.9181136]
[1731363552439,6.233918,217.86,217.68,0.1]
[1731363552636,6.233918,217.86,217.64,15.8047]
[1731363552637,1.14762824,217.85,217.64,15.8047]
[1731363552832,1.14762824,217.85,217.66,0.1]
[1731363553142,20.0,217.85,217.66,1.01818941]
[1731363554331,20.0,217.81,217.66,1.01818941]
[1731363554535,20.0,217.79,217.66,1.01818941]
[1731363554727,23.776884,217.78,217.66,0.91818941]
[1731363554931,23.776884,217.78,217.65,0.91820436]
[1731363555238,20.0,217.85,217.69,0.1]
[1731363555641,6.233918,217.86,217.7,6.2711]
[1731363555822,6.233918,217.86,217.71,0.91801978]
[1731363556726,20.0,217.85,217.71,0.91801978]
[1731363558131,6.233918,217.86,217.73,6.4581]
[1731363559044,6.233918,217.86,217.73,7.37595257]
[1731363559741,10.0,217.91,217.79,21.5386]
[1731363559944,10.0,217.91,217.8,0.91756171]
[1731363561131,20.0,217.9,217.8,0.91756171]
[1731363563335,20.0,217.9,217.79,21.5386]
[1731363564348,20.0,217.88,217.79,21.5386]
[1731363564751,20.0,217.88,217.8,0.91779809]
[1731363566240,20.0,217.9,217.8,0.91779809]
[1731363566838,10.0,217.91,217.8,0.91779809]